bitfinex/quotes_ETHUSD_20240718
["timestamp","ask_amount","ask_price","bid_price","bid_amount"]
[1721305268434,0.48701243,3464.2,3464.1,0.12091759]
[1721305268754,0.48701243,3464.2,3463.8,2.88699]
[1721305268948,0.48701243,3464.2,3464.1,0.12091759]
[1721305269151,0.48701243,3464.2,3463.8,2.88699]
[1721305269354,0.48701243,3464.2,3464.1,0.12091759]
[1721305269530,0.48701243,3464.2,3463.8,2.88699]
[1721305269730,0.48701243,3464.2,3464.1,0.12091759]
[1721305270029,0.48701243,3464.2,3463.8,2.88699]
[1721305270225,0.48701243,3464.2,3464.1,0.12091759]
[1721305270425,0.48701243,3464.2,3463.8,2.88699]
[1721305270640,0.48701243,3464.2,3464.1,0.12091759]
[1721305271144,0.48701243,3464.2,3463.8,2.88699]
[1721305271349,0.48701243,3464.2,3464.1,0.12091759]
[1721305271545,0.48701243,3464.2,3463.8,2.88699]
[1721305271852,0.48701243,3464.2,3464.1,0.12091759]
[1721305272062,0.88561842,3464.3,3463.4,2.88731]
[1721305272063,2.8868,3464.1,3463.4,2.88731]
[1721305272244,5.77333,3464.2,3464.1,0.12091759]
[1721305272442,5.77333,3464.2,3463.2,2.4206]
[1721305272443,2.88694,3463.9,3463.2,2.4206]
[1721305272620,0.577369,3463.8,3463.2,2.4206]
[1721305272819,0.577369,3463.8,3463.3,0.12113061]
[1721305273116,0.577369,3463.8,3463.2,2.4206]
[1721305273340,0.577369,3463.8,3463.3,3.00854061]
[1721305276835,0.577369,3463.8,3463.3,5.89590061]
[1721305277442,2.88684,3464.0,3463.3,5.89590061]
[1721305277642,2.88684,3464.0,3463.4,2.88732]
[1721305277936,2.88684,3464.0,3463.5,0.12120805]
[1721305278144,3.48975201,3464.2,3463.4,2.88732]
[1721305278340,2.88681,3464.1,3463.5,0.12120805]
[1721305278536,0.6376562,3464.0,3463.5,0.12120805]
[1721305278864,3.5245262,3464.0,3463.4,2.88732]
[1721305279162,2.88687,3464.0,3463.5,0.12120805]
[1721305279534,2.88687,3464.0,3463.4,2.88732]
[1721305279755,2.88687,3464.0,3463.5,0.12120805]
[1721305280263,2.88687,3464.0,3463.4,2.88732]
[1721305280556,3.464225,3464.0,3463.5,0.12120805]
[1721305280925,3.464225,3464.0,3463.4,2.88732]
[1721305281121,3.464225,3464.0,3463.5,0.12120805]
[1721305281325,3.464225,3464.0,3463.4,2.88732]
[1721305281588,3.464225,3464.0,3463.5,0.12120805]
[1721305281769,0.6350905,3463.9,3463.5,0.12120805]
[1721305282065,0.6350905,3463.9,3463.4,2.88732]
[1721305282228,0.6350905,3463.9,3463.6,0.12129926]
[1721305282435,0.6350905,3463.9,3463.5,0.12132589]
[1721305282630,0.6350905,3463.9,3463.7,0.12127477]
[1721305282845,0.35219605,3463.8,3463.6,0.1213014]
[1721305283045,0.35219605,3463.8,3463.4,2.88732]
[1721305284667,0.35219605,3463.8,3463.3,2.88739]
[1721305286153,0.35219605,3463.8,3463.4,0.1213554]
[1721305286359,0.35219605,3463.8,3463.5,0.817]
[1721305287002,0.35219605,3463.8,3463.6,0.12130214]
[1721305287374,0.35219605,3463.8,3463.5,0.817]
[1721305287569,0.35219605,3463.8,3463.7,0.12127551]
[1721305288066,0.35219605,3463.8,3463.5,0.817]
[1721305288491,0.35219605,3463.8,3463.6,0.12130214]
[1721305288874,0.35219605,3463.8,3463.5,0.817]
[1721305289109,0.35219605,3463.8,3463.7,0.12127551]
[1721305289285,0.35219605,3463.8,3463.6,0.12130214]
[1721305289464,0.35219605,3463.8,3463.7,0.12127551]
[1721305289797,0.35219605,3463.8,3463.5,0.817]
[1721305289958,0.35219605,3463.8,3463.7,0.12127337]
[1721305290160,0.35219605,3463.8,3463.6,0.12129999]
[1721305290385,0.35219605,3463.8,3463.7,0.12127337]
[1721305290787,0.35219605,3463.8,3463.5,0.817]
[1721305290970,0.32391161,3463.7,3463.3,3.70439]
[1721305293361,0.32391161,3463.7,3463.3,0.817]
[1721305293560,2.94518978,3463.6,3462.9,5.18179]
[1721305293756,0.05800978,3463.6,3463.0,0.817]
[1721305294003,0.05800978,3463.6,3462.1,7.32]
[1721305294004,2.8875,3463.2,3462.1,7.32]
[1721305294174,2.8875,3463.2,3462.6,0.817]
[1721305294175,0.40706698,3463.1,3462.6,0.817]
[1721305294500,0.40706698,3463.1,3462.4,2.88808]
[1721305294869,0.95212921,3463.1,3462.4,2.88808]
[1721305295198,0.3490572,3463.1,3462.5,0.817]
[1721305295501,0.3490572,3463.1,3462.7,0.817]
[1721305295502,0.60307201,3463.0,3462.7,0.817]
[1721305295673,1.14389447,3463.0,3462.7,0.817]
[1721305295876,1.14389447,3463.0,3462.7,0.217]
[1721305296207,0.54082246,3463.0,3462.5,0.817]
[1721305296500,0.60307201,3462.8,3462.5,3.70507]
[1721305296693,0.60307201,3462.8,3462.5,0.817]
[1721305297003,0.60307201,3462.8,3462.5,3.70508]
[1721305297408,0.60307201,3462.9,3462.5,3.70508]
[1721305297567,1.13187954,3462.8,3462.5,2.88808]
[1721305297767,1.13187954,3462.8,3462.6,2.88799]
[1721305298070,0.60307201,3463.0,3462.7,3.70491]
[1721305298683,0.60307201,3462.9,3462.7,3.70491]
[1721305299208,0.60307201,3463.0,3462.7,3.70491]
[1721305299572,0.60307201,3463.0,3462.7,2.88791]
[1721305299774,0.18596428,3462.9,3462.7,2.88791]
[1721305299968,0.60307201,3463.0,3462.7,2.88791]
[1721305300993,0.60307201,3463.0,3462.8,0.11333473]
[1721305301195,0.60307201,3463.0,3462.7,2.88791]
[1721305301394,0.60307201,3463.0,3462.9,0.11330809]
[1721305301701,0.60307201,3463.0,3462.8,0.11333473]
[1721305301908,0.60307201,3463.0,3462.9,0.11330809]
[1721305302286,1.19878011,3463.0,3462.6,2.88799]
[1721305302490,1.19878011,3463.0,3462.9,0.11330809]
[1721305302685,1.19878011,3463.0,3462.6,2.88799]
[1721305302870,1.19878011,3463.0,3462.9,0.11330809]
[1721305303071,1.19878011,3463.0,3462.6,2.88799]
[1721305303279,0.5957081,3463.0,3462.9,0.11330809]
[1721305303496,0.5957081,3463.0,3462.5,2.88807]
[1721305303694,1.50322171,3463.0,3462.9,0.11330809]
[1721305303970,1.50322171,3463.0,3462.5,2.88807]
[1721305304192,1.19925835,3462.9,3462.6,0.11338802]
[1721305304397,0.60426964,3462.8,3462.6,0.11338802]
[1721305305565,0.60426964,3462.8,3462.4,2.88816]
[1721305305766,0.60426964,3462.8,3462.3,2.88824]
[1721305305767,0.60426964,3462.8,3462.5,3.00192127]
[1721305306208,0.60426964,3462.9,3462.6,2.88799]
[1721305306380,0.60426964,3462.9,3462.7,5.1904]
[1721305306708,0.60426964,3463.1,3462.8,3.70477]
[1721305307074,0.60426964,3463.1,3462.9,0.113754]
[1721305307288,0.60426964,3463.2,3462.9,0.113754]
[1721305307975,0.60426964,3463.2,3463.0,0.817]
[1721305308512,0.60426964,3463.2,3463.1,0.11370073]
[1721305309573,0.90751361,3463.3,3463.1,0.11370073]
[1721305309809,1.11926679,3463.3,3462.9,2.88773]
[1721305310008,0.60453728,3463.0,3462.9,2.88773]
[1721305311217,0.90751361,3463.1,3462.9,2.88773]
[1721305311786,0.60462798,3463.0,3462.9,2.88773]
[1721305312178,0.90751361,3463.1,3462.9,2.88773]
[1721305312883,0.60467053,3463.0,3462.9,2.88773]
[1721305313314,0.60472867,3463.0,3462.9,2.88773]
[1721305314020,0.60472867,3463.1,3462.9,2.88773]
[1721305314515,0.60472867,3463.0,3462.9,2.88773]
[1721305315012,0.90751361,3463.1,3462.7,5.19041]
[1721305315182,0.60489119,3462.9,3462.8,2.88783]
[1721305316147,0.60489119,3463.0,3462.9,2.88775]
[1721305316282,0.90751361,3463.1,3462.9,2.88775]
[1721305316483,0.90751361,3463.1,3462.8,3.00160064]
[1721305316678,0.60497554,3462.9,3462.8,2.88782]
[1721305317742,0.90751361,3463.0,3462.8,2.88782]
[1721305318024,0.90751361,3463.0,3462.9,2.88775]
[1721305319286,0.90751361,3463.0,3462.8,2.88782]
[1721305319483,0.90751361,3462.9,3462.4,5.38559]
[1721305319684,0.60524325,3462.5,3462.4,2.88809]
[1721305320600,0.60524325,3462.6,3462.5,2.88808]
[1721305320924,0.60524325,3462.6,3462.5,3.70508]
[1721305323552,0.90786487,3462.7,3462.5,3.70508]
[1721305323913,0.90786487,3462.7,3462.6,2.888]
[1721305324329,0.90786487,3462.7,3462.5,2.88802]
[1721305324737,0.90786487,3462.7,3462.6,2.888]
[1721305326132,0.90786487,3462.7,3462.4,2.8881]
[1721305326349,0.60538232,3462.5,3462.4,2.8881]
[1721305329123,0.90786487,3462.6,3462.5,2.88808]
[1721305331043,0.90786487,3462.6,3462.5,3.00194273]
[1721305331563,1.21001815,3462.7,3462.5,3.00194273]
[1721305331716,1.21001815,3462.6,3462.5,0.11386273]
[1721305331920,1.51403974,3462.7,3462.5,0.11386273]
[1721305332318,1.51403974,3462.7,3462.3,2.88822]
[1721305332652,1.21132939,3462.5,3462.2,2.88827]
[1721305332828,0.9084967,3462.3,3462.2,2.88827]
[1721305334023,1.4838663,3462.5,3462.3,2.88825]
[1721305334024,0.9084967,3462.4,3462.3,2.88825]
[1721305334337,0.9084967,3462.4,3462.3,3.70525]
[1721305334735,0.9084967,3462.4,3462.3,2.88825]
[1721305335057,1.21132939,3462.4,3462.2,2.88832]
[1721305335554,1.57239925,3462.6,3462.2,2.88832]
[1721305335555,0.90875065,3462.3,3462.2,2.88832]
[1721305338380,0.90875065,3462.3,3462.0,3.7055]
[1721305338676,0.90875065,3462.3,3462.1,2.88842]
[1721305338677,0.60606218,3462.2,3462.1,2.88842]
[1721305338983,0.60606218,3462.2,3462.1,8.87584]
[1721305339167,0.90875065,3462.3,3462.2,2.88833]
[1721305339366,1.5148992,3462.6,3462.1,5.98741]
[1721305339367,1.21132939,3462.4,3462.1,5.98741]
[1721305339564,0.90927785,3462.2,3462.1,5.98741]
[1721305340367,0.90927785,3462.2,3462.1,2.88841]
[1721305340564,0.90927785,3462.2,3461.9,3.70555]
[1721305340565,0.90927785,3462.2,3462.0,2.88849]
[1721305340764,0.90927785,3462.2,3461.9,3.70552]
[1721305340765,0.90927785,3462.2,3461.9,2.88852]
[1721305340979,0.60616304,3462.0,3461.9,3.70552]
[1721305341186,0.60616304,3462.0,3461.7,2.88874]
[1721305341187,0.88464105,3462.0,3461.7,5.77743]
[1721305341341,0.90927785,3461.8,3461.7,2.88869]
[1721305341544,0.90927785,3461.9,3461.6,2.4559]
[1721305341867,0.60614706,3461.7,3461.6,5.34472]
[1721305342582,0.60614706,3461.7,3461.6,6.16172]
[1721305343140,0.60614706,3461.7,3461.6,9.05055]
[1721305343358,1.51540723,3462.2,3461.7,5.7775]
[1721305343359,0.60614706,3461.8,3461.7,5.7775]
[1721305343553,0.60614706,3461.8,3461.7,6.5945]
[1721305343856,1.51540723,3462.3,3461.8,5.77734]
[1721305343857,0.60614706,3461.9,3461.8,5.77734]
[1721305344053,0.90927785,3462.1,3461.9,5.77716]
[1721305344054,0.60614706,3462.0,3461.9,5.77716]
[1721305344389,0.60614706,3462.0,3461.9,8.92576]
[1721305344545,0.90927785,3462.2,3461.9,3.1486]
[1721305344546,0.60614706,3462.2,3461.9,3.1486]
[1721305344881,0.60614706,3462.3,3462.1,3.70542]
[1721305345068,0.60614706,3462.3,3462.2,2.88833]
[1721305345443,0.90927785,3462.5,3462.3,2.8882]
[1721305345648,0.90927785,3462.4,3462.3,2.8882]
[1721305345882,0.90927785,3462.4,3462.2,2.88832]
[1721305346084,0.90927785,3462.4,3461.9,2.3316]
[1721305346085,0.90927785,3462.4,3462.3,0.11121836]
[1721305346255,1.57486661,3462.5,3462.3,0.11121836]
[1721305346461,1.57486661,3462.5,3462.0,2.88843]
[1721305346690,0.9088028,3462.2,3462.0,2.88843]
[1721305347054,0.9088028,3462.1,3462.0,2.88843]
[1721305347267,0.9088028,3462.1,3461.8,2.88859]
[1721305347468,0.60584224,3461.9,3461.8,2.88859]
[1721305347755,2.40116967,3462.4,3461.7,2.88871]
[1721305347756,0.60584224,3462.0,3461.9,2.88858]
[1721305348287,0.60584224,3462.1,3462.0,2.8885]
[1721305348460,0.60584224,3462.1,3462.0,3.7055]
[1721305349061,0.60584224,3462.2,3462.1,2.88842]
[1721305349263,0.60584224,3462.2,3462.1,5.18412]
[1721305350151,0.60584224,3462.2,3462.1,8.07254]
[1721305352194,0.9088028,3462.3,3462.1,2.88842]
[1721305352397,1.27229612,3462.3,3462.1,2.88842]
[1721305354264,1.27229612,3462.3,3461.9,2.88854]
[1721305354599,0.60580273,3462.1,3462.0,2.88848]
[1721305357082,0.60580273,3462.1,3462.0,3.70548]
[1721305358172,0.9088028,3462.2,3462.1,2.88842]
[1721305359001,0.9088028,3462.2,3462.1,8.20544]
[1721305360835,1.21173706,3462.4,3462.1,8.20544]
[1721305360836,0.9088028,3462.3,3462.2,2.88833]
[1721305361006,0.9088028,3462.3,3462.2,5.88787712]
[1721305361331,1.21173706,3462.4,3462.3,2.88825]
[1721305361824,1.21173706,3462.4,3462.3,2.99944047]
[1721305364244,1.51538048,3462.5,3462.4,2.88817]
[1721305364733,1.51538048,3462.5,3462.4,2.99933382]
[1721305366205,1.5160352,3462.5,3462.4,2.99933382]
[1721305366610,1.51605849,3462.5,3462.4,2.99933382]
[1721305367896,1.51605849,3462.6,3462.5,2.88808]
[1721305368133,1.81927019,3462.9,3462.5,2.88808]
[1721305368134,1.21278851,3462.7,3462.6,5.776]
[1721305368403,11.62391468,3463.2,3462.7,5.77582]
[1721305368404,1.21278851,3462.8,3462.7,5.77582]
[1721305368599,1.21278851,3462.8,3462.7,5.886876]
[1721305369296,1.21278851,3462.8,3462.7,2.998966]
[1721305369499,1.21259853,3462.8,3462.7,2.998896]
[1721305369930,1.51586755,3462.9,3462.7,2.998896]
[1721305370101,1.84935841,3462.9,3462.7,2.998896]
[1721305370301,1.2125508,3462.8,3462.7,0.111056]
[1721305370511,1.51586755,3462.8,3462.7,0.111056]
[1721305370700,1.15244871,3462.8,3462.7,0.111056]
[1721305371112,1.15244871,3462.8,3462.2,2.88826]
[1721305371297,0.90953111,3462.4,3462.2,2.88826]
[1721305371498,0.90953111,3462.3,3462.2,2.88826]
[1721305372349,1.21270774,3462.4,3462.1,2.88837]
[1721305372558,1.21270774,3462.3,3462.1,2.88837]
[1721305372708,1.5159986,3462.4,3462.1,2.88837]
[1721305372709,1.21270774,3462.2,3462.1,2.88837]
[1721305372901,0.90956689,3462.2,3462.1,2.88837]
[1721305373801,0.90956689,3462.2,3462.1,3.70537]
[1721305374125,0.90956689,3462.3,3462.2,2.88833]
[1721305374325,0.90956689,3462.3,3462.2,5.38223]
[1721305374525,0.90956689,3462.5,3462.4,2.88817]
[1721305374727,2.3912,3462.5,3462.2,2.88833]
[1721305375049,1.5159986,3462.4,3462.2,2.88833]
[1721305375215,1.21280066,3462.3,3462.2,2.88833]
[1721305376106,1.21280066,3462.3,3462.2,2.99945918]
[1721305377234,1.21280066,3462.4,3462.2,2.99945918]
[1721305377403,1.21280066,3462.4,3462.2,5.88771918]
[1721305377604,1.21280066,3462.4,3462.3,2.88825]
[1721305377810,1.21280066,3462.4,3462.3,2.99936969]
[1721305378119,1.51609987,3462.4,3462.3,2.99936969]
[1721305378627,1.51609987,3462.5,3462.3,2.99936969]
[1721305378938,1.51612884,3462.5,3462.3,2.99936969]
[1721305379116,4.19265461,3462.8,3462.3,2.99936969]
[1721305379117,1.51612884,3462.4,3462.3,2.99936969]
[1721305380529,2.3733,3462.8,3462.3,2.99936969]
[1721305380729,1.18189892,3462.7,3462.3,2.99936969]
[1721305380924,0.28530792,3462.6,3462.3,0.11111969]
[1721305381237,1.51611292,3462.4,3462.1,2.8884]
[1721305381436,6.672551,3462.7,3462.2,0.11123213]
[1721305381644,0.28532777,3462.6,3462.2,0.11123213]
[1721305381807,1.30014565,3462.5,3462.2,0.11123213]
[1721305382135,1.01481788,3462.5,3462.2,0.11123213]
[1721305382508,0.28530893,3462.4,3462.0,2.88849]
[1721305382707,3.90290788,3462.5,3462.3,0.11120548]
[1721305383008,3.90290788,3462.5,3461.8,0.817]
[1721305383009,0.96439894,3462.4,3461.8,0.817]
[1721305383203,0.60645128,3461.9,3461.8,2.88865]
[1721305383408,0.90967693,3462.0,3461.5,2.88886]
[1721305383409,3.95132808,3462.0,3461.5,2.88886]
[1721305383635,0.90978362,3461.6,3461.5,2.88886]
[1721305383832,1.21304483,3461.6,3461.5,2.88886]
[1721305385014,1.21304483,3461.7,3461.6,2.88883]
[1721305385651,1.21304483,3461.8,3461.6,2.88883]
[1721305386930,0.90924314,3461.7,3461.6,2.88883]
[1721305387117,0.90924314,3461.7,3461.6,5.21003]
[1721305387814,0.90924314,3461.7,3461.6,8.09886]
[1721305388042,0.60606222,3461.8,3461.7,2.88875]
[1721305388369,0.60606222,3462.0,3461.9,2.88858]
[1721305388646,0.60606222,3462.0,3461.9,5.77716]
[1721305389026,0.90924314,3462.2,3462.0,2.8885]
[1721305389246,0.90924314,3462.2,3462.1,0.817]
[1721305389429,1.21304483,3462.3,3462.2,2.88833]
[1721305391245,1.21304483,3462.3,3462.2,5.25499216]
[1721305391246,0.90905865,3462.3,3462.2,5.25499216]
[1721305391618,0.90905865,3462.4,3462.3,2.88825]
[1721305391949,0.90905865,3462.4,3462.3,2.99951554]
[1721305392322,1.21304483,3462.5,3462.3,2.99951554]
[1721305392917,1.21304483,3462.5,3462.4,2.88817]
[1721305393346,1.21304483,3462.5,3462.4,2.9994089]
[1721305394045,1.21304483,3462.5,3462.4,0.1112389]
[1721305394218,1.48585433,3462.5,3462.2,2.8883]
[1721305394419,0.90903145,3462.3,3462.2,2.8883]
[1721305398063,0.60600064,3462.3,3462.2,2.8883]
[1721305398763,0.90903145,3462.4,3462.2,2.8883]
[1721305398953,1.21304483,3462.6,3462.2,2.8883]
[1721305398954,0.90903145,3462.3,3462.2,2.8883]
[1721305401133,0.36371297,3462.3,3462.2,2.8883]
[1721305401649,1.5767578,3462.3,3462.2,2.8883]
[1721305401834,1.5767578,3462.3,3462.1,2.8884]
[1721305402035,0.90908982,3462.2,3462.1,2.8884]
[1721305402367,0.90908982,3462.2,3461.8,2.88859]
[1721305402667,0.60603921,3461.9,3461.7,3.7057]
[1721305402837,0.60603921,3461.9,3461.7,2.8887]
[1721305403167,0.60603921,3461.9,3461.6,2.88877]
[1721305403168,0.90908982,3461.8,3461.6,2.88877]
[1721305404338,0.90908982,3461.8,3461.5,2.88884]
[1721305404541,0.60606039,3461.6,3461.5,2.88884]
[1721305406143,0.60606039,3461.6,3461.5,3.00028446]
[1721305408453,0.60606039,3461.6,3461.5,5.88920446]
[1721305408978,0.60606039,3461.7,3461.6,2.88883]
[1721305409179,0.60606039,3461.7,3461.6,3.70583]
[1721305409342,0.60606039,3461.7,3461.6,3.8172478]
[1721305411463,0.60606039,3461.7,3461.6,3.0002478]
[1721305412383,0.90908982,3461.8,3461.6,3.0002478]
[1721305412789,0.90908982,3461.7,3461.6,0.1114178]
[1721305413086,0.90908982,3461.7,3461.5,2.88889]
[1721305413382,0.90908982,3461.7,3461.6,0.11153365]
[1721305415410,0.90908982,3461.7,3461.6,3.81736365]
[1721305415682,0.90908982,3461.8,3461.6,3.81736365]
[1721305416481,0.90908982,3461.7,3461.6,3.00036365]
[1721305421391,0.90908982,3461.8,3461.6,3.00036365]
[1721305421810,0.90908982,3461.8,3461.7,3.70575]
[1721305422096,0.90908982,3462.0,3461.9,2.88858]
[1721305422298,0.90908982,3462.1,3462.0,3.7055]
[1721305422596,1.51433691,3462.4,3462.1,5.28092]
[1721305422597,0.90908982,3462.2,3462.1,5.28092]
[1721305422798,0.90908982,3462.3,3462.2,2.88833]
[1721305423116,0.60560583,3462.3,3462.2,3.81670587]
[1721305423599,0.60558525,3462.4,3462.3,2.88825]
[1721305423837,0.90908982,3462.5,3462.4,2.88817]
[1721305423973,0.90908982,3462.5,3462.4,3.70517]
[1721305424172,0.90908982,3462.6,3462.5,5.77616]
[1721305424391,0.90908982,3462.6,3462.5,6.59316]
[1721305424605,1.21304483,3462.8,3462.5,6.59316]
[1721305424606,0.90908982,3462.7,3462.6,2.888]
[1721305424980,0.90908982,3462.7,3462.6,2.99926499]
[1721305429008,0.90908982,3462.8,3462.7,2.88791]
[1721305429196,0.90908982,3462.8,3462.7,3.70491]
[1721305429399,0.90908982,3462.8,3462.7,3.8160218]
[1721305430005,0.60521506,3462.9,3462.7,3.8160218]
[1721305430374,0.90908982,3463.1,3462.9,2.88775]
[1721305430375,0.60521506,3463.0,3462.9,2.88775]
[1721305430777,0.60521506,3463.0,3462.9,2.99876991]
[1721305431424,0.90908982,3463.1,3463.0,5.77532]
[1721305431637,0.90908982,3463.1,3462.9,0.11101991]
[1721305431638,0.60508769,3463.3,3463.1,2.88758]
[1721305431795,0.90908982,3463.5,3463.3,2.88741]
[1721305432000,0.90908982,3463.5,3463.4,2.88733]
[1721305432315,0.90908982,3463.5,3463.4,3.81517814]
[1721305432526,8.18908982,3463.6,3463.4,3.81517814]
[1721305433599,0.60459468,3463.5,3463.4,3.81517814]
[1721305433923,0.60459468,3463.6,3463.4,3.81517814]
[1721305434282,0.60459468,3463.6,3463.5,5.7745]
[1721305434483,0.90908982,3463.8,3463.6,2.88716]
[1721305434484,0.60459468,3463.8,3463.6,2.88716]
[1721305434825,0.60459468,3463.9,3463.7,3.81434221]
[1721305435040,0.90908982,3464.0,3463.7,3.81434221]
[1721305435041,0.60459468,3463.8,3463.7,3.81434221]
[1721305435385,0.60459468,3463.9,3463.7,3.81434221]
[1721305435628,0.15136845,3463.8,3463.7,0.92732221]
[1721305436006,0.15136845,3463.8,3463.7,0.11032221]
[1721305437799,0.15136845,3463.8,3463.4,2.8873]
[1721305438005,0.75596313,3463.8,3463.7,0.11028792]
[1721305438245,0.75596313,3463.8,3463.4,2.8873]
[1721305438553,0.4551903,3463.7,3463.4,2.8873]
[1721305446439,0.4551903,3463.7,3463.3,2.88741]
[1721305447310,2.88692,3463.9,3463.3,2.88741]
[1721305448643,2.88692,3463.9,3463.4,2.88732]
[1721305448804,2.88682,3464.1,3463.4,2.88732]
[1721305449011,2.88651,3464.4,3463.6,2.88712]
[1721305449316,2.88651,3464.4,3463.7,2.88702]
[1721305449506,2.88651,3464.4,3463.6,2.94485739]
[1721305449507,0.804618,3464.3,3463.8,2.88699]
[1721305449936,2.2733,3464.6,3464.0,2.88681]
[1721305450141,5.15966,3464.6,3464.0,2.88681]
[1721305451142,5.15966,3464.6,3464.1,0.11007543]
[1721305451347,0.60265101,3464.5,3464.1,0.11007543]
[1721305452239,0.60265101,3464.5,3464.1,2.36967543]
[1721305452628,0.60265101,3464.5,3464.3,2.88658]
[1721305453035,0.60265101,3464.5,3464.4,0.10994629]
[1721305461349,2.88617,3464.8,3464.4,0.10994629]
[1721305462037,3.545082,3464.8,3464.4,0.10994629]
[1721305462421,2.4742,3464.7,3464.2,2.88665]
[1721305462641,2.4742,3464.7,3464.5,0.10969469]
[1721305462953,2.4742,3464.7,3464.6,0.10966808]
[1721305463134,7.0679802,3464.7,3464.6,0.10966808]
[1721305463322,7.0679802,3464.7,3464.0,2.88679]
[1721305463323,6.2509802,3464.7,3464.0,2.88679]
[1721305463721,6.2509802,3464.7,3464.1,0.10980116]
[1721305463921,2.88637,3464.6,3464.1,0.10980116]
[1721305464941,2.88637,3464.6,3464.1,0.92680116]
[1721305467548,3.48902101,3464.6,3464.1,0.92680116]
[1721305468424,0.60265101,3464.6,3464.1,3.81350116]
[1721305468629,0.60265101,3464.5,3464.1,3.81350116]
[1721305470630,0.60265101,3464.4,3464.1,3.81350116]
[1721305472375,0.60265101,3464.4,3464.1,2.99650116]
[1721305472671,0.60265101,3464.3,3464.1,2.99650116]
[1721305473482,0.60265101,3464.2,3464.1,2.99650116]
[1721305474413,0.60265101,3464.2,3464.1,3.81350116]
[1721305474700,0.60265101,3464.3,3464.2,2.88666]
[1721305474988,0.60265101,3464.3,3464.2,2.99643453]
[1721305475556,0.90397652,3464.3,3464.2,2.99643453]
[1721305475756,0.60504973,3464.3,3464.2,5.45243453]
[1721305476870,0.90397652,3464.4,3464.3,2.88658]
[1721305477054,0.90397652,3464.5,3464.3,3.70358]
[1721305477586,1.20530203,3464.6,3464.4,0.10972129]
[1721305479811,2.8861,3464.9,3464.4,0.10972129]
[1721305479812,1.20530203,3464.5,3464.4,0.10972129]
[1721305484885,1.20530203,3464.5,3464.4,0.05972129]
[1721305485106,1.20530203,3464.5,3464.4,0.10728633]
[1721305487295,0.27196816,3464.5,3464.4,0.10728633]
[1721305488220,1.78634777,3464.5,3464.4,0.10728633]
[1721305489125,0.27196816,3464.5,3464.4,0.10728633]
[1721305489437,1.7872876,3464.5,3464.4,0.10728633]
[1721305489717,1.78728817,3464.5,3464.4,0.10728633]
[1721305490420,1.78727985,3464.5,3464.4,0.10728633]
[1721305492019,1.51531169,3464.5,3464.4,0.10728633]
[1721305492330,2.88609,3464.9,3464.4,0.10728633]
[1721305492531,1.5152995,3464.5,3464.4,0.10728633]
[1721305493390,1.5152995,3464.5,3464.4,2.99378633]
[1721305493590,1.5152995,3464.5,3464.4,5.32398633]
[1721305493790,1.5152995,3464.5,3464.4,8.21048633]
[1721305493791,1.21217497,3464.5,3464.4,8.21048633]
[1721305494199,1.5152995,3464.7,3464.4,8.21048633]
[1721305494200,1.21217497,3464.6,3464.5,2.88641]
[1721305494387,1.21217497,3464.6,3464.5,6.58982]
[1721305494593,1.21217497,3464.6,3464.5,6.69704114]
[1721305494993,1.5152995,3464.7,3464.6,2.88633]
[1721305495322,1.5152995,3464.7,3464.6,2.99351381]
[1721305495625,1.81808598,3465.0,3464.7,2.88617]
[1721305495826,1.15178075,3464.9,3464.7,2.88617]
[1721305495999,1.15178075,3464.8,3464.7,2.88617]
[1721305497223,1.44876742,3464.8,3464.4,2.88645]
[1721305497524,1.44876742,3464.8,3464.3,2.88653]
[1721305497525,1.51526927,3464.5,3464.3,2.88653]
[1721305497706,1.51526927,3464.4,3464.3,2.88653]
[1721305498716,1.51532576,3464.4,3464.3,2.88653]
[1721305499105,0.29698667,3464.8,3464.3,2.88653]
[1721305499307,1.5153462,3464.4,3464.3,2.88653]
[1721305499824,1.81841453,3464.8,3464.4,2.88648]
[1721305500024,1.1518607,3464.7,3464.4,5.77293]
[1721305500225,2.50100434,3464.8,3464.5,8.09512]
[1721305500226,1.1518607,3464.6,3464.5,8.09512]
[1721305500432,1.51534534,3464.7,3464.6,2.88633]
[1721305500630,1.51534534,3464.8,3464.7,2.88625]
[1721305500796,1.51534534,3464.9,3464.7,2.88625]
[1721305501227,1.51511144,3464.8,3464.7,2.88625]
[1721305504199,2.88576,3465.3,3464.7,2.88625]
[1721305504399,1.51480297,3464.8,3464.7,2.88625]
[1721305505926,1.81776357,3465.2,3464.8,2.88616]
[1721305505927,1.51480297,3464.9,3464.8,2.88616]
[1721305506329,1.51480297,3464.9,3464.8,3.70316]
[1721305507534,1.51448964,3464.9,3464.8,2.88616]
[1721305507734,1.51448964,3465.0,3464.8,2.88616]
[1721305507898,1.51440238,3465.0,3464.8,2.88616]
[1721305508105,1.51440238,3465.0,3464.6,3.70332]
[1721305508303,4.70307286,3465.3,3464.6,3.70328]
[1721305508304,1.21150238,3464.7,3464.6,3.70328]
[1721305508527,1.21150238,3464.7,3464.4,2.88648]
[1721305508733,0.90863451,3464.5,3464.4,2.88648]
[1721305509804,1.21150238,3464.5,3463.9,5.37574]
[1721305510008,0.60581276,3464.1,3464.0,3.70383]
[1721305510320,0.90871914,3464.1,3464.0,3.70383]
[1721305511210,0.90871914,3464.1,3464.0,3.81110285]
[1721305513345,0.90871914,3464.1,3464.0,6.69793285]
[1721305519349,1.21162553,3464.2,3464.1,2.88675]
[1721305519754,1.21162553,3464.2,3464.1,2.99408402]
[1721305522331,1.21162553,3464.2,3464.1,0.10733402]
[1721305522553,1.79374419,3464.2,3463.7,2.88703]
[1721305522752,0.60608497,3463.8,3463.7,2.88703]
[1721305522954,0.90912745,3463.9,3463.7,2.88703]
[1721305522955,1.51525514,3463.9,3463.7,2.88703]
[1721305523331,0.27848905,3464.2,3463.7,2.88703]
[1721305523532,1.21206936,3463.8,3463.7,2.88703]
[1721305523833,1.21206936,3463.8,3463.7,3.70403]
[1721305524631,1.21206936,3463.9,3463.8,5.774]
[1721305524826,1.51542919,3464.0,3463.9,2.88691]
[1721305524827,1.21206936,3464.0,3463.9,2.88691]
[1721305526178,1.21206936,3464.0,3463.9,2.99429727]
[1721305527454,1.21206936,3464.1,3464.0,2.88683]
[1721305527961,1.21206936,3464.1,3464.0,2.99419064]
[1721305528128,3.57386936,3464.1,3464.0,0.10736064]
[1721305528330,4.14876329,3464.1,3464.0,0.10736064]
[1721305528532,2.63443933,3464.1,3463.7,2.88706]
[1721305528750,1.21141303,3463.9,3463.7,2.88706]
[1721305529661,0.90844793,3463.8,3463.7,2.88706]